bitfinex/quotes_SOLUSD_20250728
["timestamp","ask_amount","ask_price","bid_price","bid_amount"]
[1753694915364,36.16,192.76,192.7,31.18918585]
[1753694915563,36.16,192.76,192.7,5.81635238]
[1753694915564,0.72,192.75,192.7,5.81635238]
[1753694915752,6.53635238,192.75,192.7,5.81635238]
[1753694916084,0.72,192.74,192.7,5.81635238]
[1753694916241,5.81635238,192.75,192.7,5.81635238]
[1753694916444,0.72,192.73,192.7,5.81635238]
[1753694916660,36.16,192.72,192.7,5.81635238]
[1753694917250,36.16,192.72,192.7,11.00570664]
[1753694917456,36.16,192.72,192.71,5.81635238]
[1753694917652,36.16,192.72,192.71,6.49635238]
[1753694918060,36.16,192.73,192.72,0.28432314]
[1753694918246,36.16,192.73,192.72,6.10067552]
[1753694918767,36.16,192.73,192.72,11.96955057]
[1753694918970,0.72,192.8,192.72,11.96955057]
[1753694919171,36.16,192.79,192.76,5.81635238]
[1753694919880,36.88,192.79,192.76,5.81635238]
[1753694920459,0.72,192.78,192.75,31.81635238]
[1753694920654,0.72,192.78,192.75,26.0]
[1753694921567,5.81635238,192.77,192.72,94.11635238]
[1753694921772,5.81635238,192.77,192.72,5.81635238]
[1753694921956,0.72,192.76,192.72,6.10067552]
[1753694922158,36.16,192.75,192.72,6.10067552]
[1753694922479,36.88,192.75,192.72,6.10067552]
[1753694923450,36.16,192.75,192.72,6.10067552]
[1753694923646,0.72,192.74,192.7,31.18934908]
[1753694923871,0.72,192.73,192.71,5.81635238]
[1753694924080,36.16,192.75,192.71,5.81635238]
[1753694924262,0.72,192.74,192.71,5.81635238]
[1753694926368,0.72,192.74,192.72,5.81635238]
[1753694926976,36.16,192.75,192.72,5.81635238]
[1753694927183,36.88,192.75,192.72,5.81635238]
[1753694927679,36.16,192.75,192.72,5.81635238]
[1753694927887,0.72,192.78,192.74,5.81635238]
[1753694928062,36.16,192.77,192.74,5.81635238]
[1753694928261,36.85,192.77,192.73,0.68]
[1753694928462,36.85,192.77,192.73,6.49635238]
[1753694928786,0.69,192.76,192.73,11.68494001]
[1753694928967,0.69,192.76,192.73,5.18858763]
[1753694929170,0.69,192.76,192.73,11.00494001]
[1753694929557,0.69,192.76,192.73,5.18858763]
[1753694929857,0.69,192.76,192.72,5.4731375]
[1753694930058,0.69,192.76,192.73,5.81635238]
[1753694932669,0.69,192.76,192.72,5.4731375]
[1753694933011,0.69,192.75,192.72,11.28948988]
[1753694933154,3.39713476,192.75,192.72,11.28948988]
[1753694933493,3.39713476,192.75,192.72,6.10067552]
[1753694933780,3.39713476,192.75,192.72,0.28432314]
[1753694934084,3.39713476,192.75,192.72,6.10067552]
[1753694934382,3.39713476,192.75,192.71,5.81635238]
[1753694934383,0.69,192.74,192.71,5.81635238]
[1753694934679,36.16,192.73,192.71,5.81635238]
[1753694934869,36.16,192.73,192.7,37.69568094]
[1753694935075,36.85,192.73,192.7,37.69568094]
[1753694935588,36.85,192.73,192.7,32.50635238]
[1753694935960,0.69,192.72,192.67,0.69]
[1753694936189,36.85,192.73,192.68,32.50635238]
[1753694936487,36.85,192.73,192.69,0.69]
[1753694936953,36.85,192.73,192.69,6.50635238]
[1753694937456,0.69,192.72,192.69,6.50635238]
[1753694937883,0.69,192.72,192.69,0.69]
[1753694938067,0.69,192.72,192.68,26.0]
[1753694938259,0.69,192.72,192.68,37.00629367]
[1753694938583,0.69,192.72,192.68,37.69629367]
[1753694938781,0.69,192.71,192.67,5.81635238]
[1753694938971,0.69,192.71,192.62,19.3598594]
[1753694938972,41.97635238,192.7,192.64,6.50635238]
[1753694939167,42.66635238,192.7,192.65,5.81635238]
[1753694939486,36.85,192.7,192.66,0.69]
[1753694939663,0.69,192.69,192.65,5.81635238]
[1753694939863,0.69,192.69,192.65,6.50635238]
[1753694941059,0.69,192.69,192.65,11.00686432]
[1753694941260,36.16,192.7,192.66,6.50635238]
[1753694941475,36.16,192.7,192.67,0.69]
[1753694941754,5.18906046,192.72,192.68,0.69]
[1753694941755,11.00541284,192.72,192.68,0.69]
[1753694941960,36.16,192.71,192.69,0.69]
[1753694942367,36.16,192.71,192.68,5.81635238]
[1753694942568,36.85,192.71,192.67,6.50635238]
[1753694942763,36.85,192.71,192.67,0.69]
[1753694942984,6.50635238,192.7,192.65,5.81635238]
[1753694943284,5.81635238,192.68,192.63,5.81635238]
[1753694943486,36.18,192.67,192.63,5.81635238]
[1753694943785,0.69,192.66,192.62,37.69785416]
[1753694943983,0.69,192.65,192.62,26.0]
[1753694944689,36.87,192.64,192.62,26.0]
[1753694945776,36.18,192.64,192.62,26.0]
[1753694946280,36.18,192.64,192.62,26.69]
[1753694947291,36.18,192.64,192.62,26.0]
[1753694947670,0.69,192.63,192.59,5.19235189]
[1753694947895,0.69,192.62,192.59,5.19235189]
[1753694948105,36.2,192.61,192.58,5.47690886]
[1753694948288,36.2,192.61,192.58,11.98326124]
[1753694948889,36.2,192.61,192.58,0.69]
[1753694949087,0.69,192.6,192.57,5.81635238]
[1753694949294,36.2,192.61,192.57,0.28432314]
[1753694949487,36.2,192.61,192.58,0.69]
[1753694949694,36.2,192.61,192.58,6.50635238]
[1753694950114,0.69,192.62,192.59,0.69]
[1753694950407,36.24,192.61,192.59,5.88229542]
[1753694950621,0.69,192.68,192.6,6.79067552]
[1753694950785,36.24,192.67,192.62,5.81635238]
[1753694950990,36.93,192.67,192.62,6.50635238]
[1753694951206,0.69,192.66,192.62,0.69]
[1753694951378,6.50635238,192.66,192.6,5.81635238]
[1753694951576,5.81635238,192.63,192.58,31.81635238]
[1753694951795,42.05635238,192.62,192.57,11.69925781]
[1753694951979,0.69,192.61,192.57,11.69925781]
[1753694952304,0.69,192.61,192.58,0.69]
[1753694953494,2.70938811,192.6,192.58,0.69]
[1753694953695,36.24,192.59,192.58,0.69]
[1753694954096,36.24,192.59,192.58,6.50635238]
[1753694954290,36.24,192.59,192.56,31.19313798]
[1753694954616,36.93,192.59,192.56,37.00949036]
[1753694954774,36.24,192.59,192.56,37.00949036]
[1753694954977,36.24,192.59,192.57,0.69]
[1753694956483,36.24,192.59,192.57,6.50635238]
[1753694956686,36.24,192.59,192.57,0.69]
[1753694958107,36.24,192.59,192.57,6.50635238]
[1753694958778,36.24,192.59,192.57,0.69]
[1753694958979,36.24,192.59,192.57,6.50635238]
[1753694959581,36.24,192.59,192.56,31.81635238]
[1753694959901,0.69,192.58,192.57,26.0]
[1753694960589,36.24,192.59,192.57,6.53635238]
[1753694960979,2.70938811,192.6,192.56,37.00952518]
[1753694961186,36.22,192.59,192.56,37.72952518]
[1753694962803,36.22,192.59,192.57,5.81635238]
[1753694963007,36.22,192.59,192.58,6.53635238]
[1753694963179,2.70938811,192.6,192.58,6.53635238]
[1753694963386,36.22,192.59,192.58,11.00899959]
[1753694963581,36.22,192.59,192.58,11.29332273]
[1753694963792,153.64585238,192.69,192.59,0.28432314]
[1753694963997,2.70839036,192.64,192.63,5.81635238]
[1753694964303,36.24,192.64,192.62,5.81635238]
[1753694964502,38.94865218,192.64,192.62,5.81635238]
[1753694965782,0.69,192.63,192.6,0.72]
[1753694965985,0.69,192.62,192.6,5.81635238]
[1753694966306,36.24,192.61,192.6,5.81635238]
[1753694966678,36.93,192.61,192.6,5.81635238]
[1753694966884,36.93,192.61,192.59,26.0]
[1753694967182,36.93,192.61,192.57,26.0]
[1753694967183,0.69,192.6,192.57,26.0]
[1753694967583,0.69,192.59,192.57,26.0]
[1753694967792,36.24,192.58,192.56,5.81635238]
[1753694967978,36.24,192.58,192.57,26.0]
[1753694968185,0.69,192.61,192.57,31.81635238]
[1753694968392,36.26,192.6,192.57,26.72]
[1753694968597,36.26,192.6,192.57,32.53635238]
[1753694969410,36.26,192.6,192.59,5.81635238]
[1753694969903,0.69,192.63,192.59,6.53635238]
[1753694970104,36.26,192.62,192.61,5.81635238]
[1753694970292,36.26,192.62,192.6,6.53635238]
[1753694970497,36.26,192.62,192.61,6.53635238]
[1753694971193,36.26,192.62,192.61,11.7281908]
[1753694972510,36.95,192.62,192.61,5.81635238]
[1753694972897,36.95,192.62,192.6,5.81635238]
[1753694973093,36.26,192.62,192.59,5.81635238]
[1753694973291,0.69,192.61,192.59,11.00870663]
[1753694973488,36.26,192.62,192.59,11.00870663]
[1753694973687,36.95,192.62,192.59,11.00870663]
[1753694974211,36.95,192.62,192.59,5.19235425]
[1753694974399,36.95,192.62,192.6,5.81635238]
[1753694974997,36.95,192.62,192.59,5.19235425]
[1753694975182,2.70865218,192.64,192.61,5.81635238]
[1753694975385,2.70865218,192.64,192.63,5.81635238]
[1753694975590,38.96865218,192.64,192.63,5.81635238]
[1753694977086,38.96865218,192.64,192.62,11.00782971]
[1753694978605,2.70865218,192.64,192.63,6.53635238]
[1753694978801,38.96865218,192.64,192.63,6.82067552]
[1753694979312,36.26,192.64,192.63,95.12067552]
[1753694980309,36.26,192.64,192.63,121.12067552]
[1753694980485,2.70834747,192.67,192.64,5.1910299]
[1753694980486,36.24,192.66,192.64,5.1910299]
[1753694980693,36.24,192.66,192.65,6.82067552]
[1753694981587,36.24,192.66,192.65,6.10067552]
[1753694983017,36.24,192.66,192.65,11.29143596]
[1753694983207,36.24,192.66,192.65,12.01143596]
[1753694983611,2.70814116,192.69,192.65,12.01143596]
[1753694983807,2.70814116,192.69,192.65,5.47508358]
[1753694983808,36.24,192.68,192.65,5.47508358]
[1753694983991,36.24,192.68,192.66,0.72]
[1753694984797,2.70814116,192.69,192.67,0.72]
[1753694985017,2.70814116,192.69,192.68,5.81635238]
[1753694985195,38.92814116,192.69,192.68,5.81635238]
[1753694985595,38.92814116,192.69,192.68,11.00630463]
[1753694986493,38.92814116,192.69,192.68,11.72630463]
[1753694986700,38.92814116,192.69,192.68,12.01062777]
[1753694986701,36.22,192.69,192.68,12.01062777]
[1753694988403,3.39771898,192.72,192.68,12.01062777]
[1753694988611,3.39771898,192.72,192.71,5.81635238]
[1753694988914,38.94771898,192.72,192.71,5.81635238]
[1753694989309,39.63771898,192.72,192.71,5.81635238]
[1753694989999,39.63771898,192.72,192.69,5.81635238]
[1753694990199,38.94771898,192.72,192.69,5.81635238]
[1753694990399,0.69,192.71,192.69,5.81635238]
[1753694990601,38.94771898,192.72,192.7,5.81635238]
[1753694990818,0.69,192.71,192.7,5.81635238]
[1753694991927,38.94771898,192.72,192.7,5.81635238]
[1753694992128,38.94771898,192.72,192.71,5.81635238]
[1753694993125,38.96771898,192.72,192.71,11.68549669]
[1753694993830,38.96771898,192.72,192.71,11.96981983]
[1753694994203,36.26,192.72,192.71,11.96981983]
[1753694995016,36.26,192.72,192.71,5.81635238]
[1753694996105,36.95,192.72,192.71,5.81635238]
[1753694996310,36.26,192.72,192.71,5.81635238]
[1753694998034,36.26,192.72,192.71,11.00549669]
[1753694998237,36.26,192.72,192.71,11.68549669]
[1753694999435,36.26,192.72,192.71,11.96981983]
[1753695000935,2.70719043,192.75,192.72,0.28432314]
[1753695001110,37.42,192.77,192.74,5.81635238]
[1753695001314,36.24,192.76,192.75,5.18806744]
[1753695002528,36.24,192.76,192.75,11.00441982]
[1753695004139,36.24,192.76,192.75,5.81635238]
[1753695004312,36.93,192.76,192.75,5.81635238]
[1753695004725,36.93,192.76,192.72,88.3]
[1753695004932,0.69,192.75,192.72,94.11635238]
[1753695005120,36.22,192.74,192.72,5.81635238]
[1753695005335,0.69,192.73,192.72,5.81635238]
[1753695005950,0.69,192.73,192.68,31.18995225]
[1753695006144,36.2,192.72,192.71,5.81635238]
[1753695006342,36.89,192.72,192.71,5.81635238]
[1753695006540,36.2,192.72,192.71,5.81635238]
[1753695007054,36.22,192.72,192.71,11.82765826]
[1753695007340,36.22,192.72,192.71,11.96981983]
[1753695007747,36.22,192.72,192.71,100.26981983]
[1753695008623,36.22,192.72,192.71,99.58981983]
[1753695009027,36.22,192.72,192.71,100.26981983]
[1753695009229,36.22,192.72,192.71,99.58981983]
[1753695009750,36.22,192.72,192.71,11.28981983]
[1753695012434,36.91,192.72,192.71,11.28981983]
[1753695012755,36.91,192.72,192.71,5.81635238]
[1753695015534,36.22,192.72,192.71,5.81635238]
[1753695015733,36.22,192.72,192.71,11.68549669]
[1753695016139,0.69,192.77,192.71,11.96981983]
[1753695016348,36.22,192.76,192.75,5.81635238]
[1753695016541,36.91,192.76,192.75,5.81635238]
[1753695017234,36.91,192.76,192.71,5.33130588]
[1753695017461,0.69,192.75,192.73,5.81635238]
[1753695017660,0.69,192.74,192.73,5.81635238]
[1753695018238,0.69,192.74,192.7,32.01149674]
[1753695018437,36.22,192.73,192.7,32.01149674]
[1753695018652,36.22,192.73,192.72,5.81635238]
[1753695020562,47.9149582,192.73,192.68,5.81635238]
[1753695020746,0.69,192.72,192.67,5.81635238]
[1753695021134,0.69,192.72,192.68,5.81635238]
[1753695021652,5.18941359,192.7,192.67,5.81635238]
[1753695021852,36.22,192.69,192.67,5.81635238]
[1753695022057,36.91,192.69,192.67,5.81635238]
[1753695023235,36.91,192.69,192.68,5.81635238]
[1753695023437,36.22,192.69,192.68,6.49635238]
[1753695023965,36.22,192.69,192.68,11.97062777]
[1753695026072,36.22,192.69,192.68,37.97062777]
[1753695026250,36.22,192.71,192.7,26.28432314]
[1753695026449,36.22,192.71,192.7,32.78067552]
[1753695026766,36.22,192.71,192.7,32.10067552]
[1753695027334,36.91,192.71,192.7,31.81635238]
[1753695027536,36.91,192.71,192.67,7.0801593]
[1753695027537,36.91,192.71,192.68,5.81635238]
[1753695027752,5.87941359,192.7,192.67,5.81635238]
[1753695027953,0.69,192.69,192.66,26.0]
[1753695028270,0.69,192.69,192.64,5.81635238]
[1753695028271,36.22,192.68,192.64,5.81635238]
[1753695028440,0.69,192.67,192.63,5.81635238]
[1753695029041,0.69,192.67,192.62,5.81635238]
[1753695029863,5.88045425,192.67,192.62,5.81635238]
[1753695030064,0.69,192.66,192.62,5.81635238]
[1753695030267,36.22,192.65,192.62,5.81635238]
[1753695030455,36.91,192.65,192.62,5.81635238]
[1753695030960,36.22,192.65,192.64,5.81635238]
[1753695032051,5.81635238,192.7,192.64,5.81635238]
[1753695032247,36.91,192.69,192.65,5.81635238]
[1753695032447,0.69,192.68,192.65,5.81635238]
[1753695032752,0.69,192.67,192.65,5.81635238]
[1753695032952,36.22,192.66,192.63,0.68]
[1753695033273,36.22,192.66,192.6,26.28432314]
[1753695033274,36.91,192.66,192.64,5.81635238]
[1753695035958,36.22,192.66,192.64,5.81635238]
[1753695036339,36.22,192.66,192.65,5.81635238]
[1753695038946,36.22,192.66,192.63,5.19122858]
[1753695038947,36.91,192.66,192.63,5.81635238]
[1753695039141,0.69,192.65,192.63,5.81635238]
[1753695040153,0.69,192.65,192.61,119.77612904]
[1753695040348,0.69,192.65,192.63,5.81635238]
[1753695040668,0.69,192.64,192.62,5.81635238]
[1753695040971,36.2,192.63,192.62,5.81635238]
[1753695041472,11.0063946,192.68,192.62,6.49635238]
[1753695041772,11.0063946,192.68,192.65,5.81635238]
[1753695041773,36.2,192.67,192.65,5.81635238]
[1753695042485,36.2,192.67,192.66,5.81635238]
[1753695042868,36.2,192.67,192.65,6.49635238]
[1753695043271,36.2,192.67,192.66,5.81635238]
[1753695043454,36.2,192.67,192.66,6.49635238]
[1753695044268,36.89,192.67,192.65,5.81635238]
[1753695044470,0.69,192.71,192.67,5.19022162]
[1753695044671,36.2,192.7,192.67,5.81635238]
[1753695044957,36.89,192.7,192.67,5.81635238]
[1753695045459,0.69,192.69,192.66,5.81635238]
[1753695045667,36.2,192.7,192.66,5.81635238]
[1753695045862,0.69,192.69,192.66,5.81635238]
[1753695046061,36.2,192.7,192.66,5.81635238]
[1753695046281,0.69,192.68,192.66,5.81635238]
[1753695046484,36.22,192.67,192.65,6.15506231]
[1753695046662,36.22,192.66,192.65,6.15506231]
[1753695047284,36.22,192.66,192.63,26.0]
[1753695047459,0.69,192.65,192.6,0.68]
[1753695047660,0.69,192.65,192.63,5.81635238]
[1753695048072,0.69,192.65,192.61,0.68]
[1753695048073,0.69,192.65,192.62,5.81635238]
[1753695049989,0.69,192.65,192.63,5.81635238]
[1753695051279,36.22,192.66,192.63,5.81635238]
[1753695051584,36.89,192.66,192.63,5.81635238]
[1753695052166,0.67,192.65,192.63,5.81635238]
[1753695055270,0.67,192.65,192.6,31.81635238]
[1753695055271,0.67,192.64,192.6,31.81635238]
[1753695055586,36.87,192.63,192.6,5.81635238]
[1753695055795,36.87,192.63,192.59,5.81635238]
[1753695056165,0.67,192.62,192.59,5.81635238]
[1753695056778,36.2,192.63,192.59,6.50635238]
[1753695056993,0.67,192.62,192.59,6.50635238]
[1753695057978,36.2,192.63,192.59,11.69868248]
[1753695058177,36.87,192.63,192.59,6.50635238]
[1753695058996,0.67,192.62,192.6,5.81635238]
[1753695059687,0.67,192.62,192.58,6.16689365]
[1753695059998,36.2,192.63,192.6,5.81635238]
[1753695060191,36.87,192.63,192.6,5.81635238]
[1753695061581,0.67,192.62,192.57,32.50635238]
[1753695061920,6.48635238,192.62,192.57,31.81635238]
[1753695062083,5.81635238,192.62,192.57,31.81635238]
[1753695062280,0.67,192.61,192.57,31.81635238]
[1753695062476,36.2,192.6,192.57,26.0]
[1753695062706,0.67,192.59,192.57,26.0]
[1753695063376,0.67,192.63,192.58,6.50635238]
[1753695063587,36.2,192.62,192.59,0.69]
[1753695063896,36.87,192.62,192.58,5.81635238]
[1753695064096,36.87,192.62,192.58,6.50635238]
[1753695064475,42.06163442,192.62,192.58,6.50635238]
[1753695064679,42.06163442,192.62,192.59,5.81635238]
[1753695064680,36.2,192.61,192.59,5.81635238]
[1753695065075,36.2,192.61,192.59,6.50635238]
[1753695065272,36.2,192.6,192.59,6.50635238]
[1753695066192,5.1913391,192.63,192.59,6.50635238]
[1753695066408,36.87,192.62,192.59,5.81635238]
[1753695066708,36.87,192.62,192.59,6.50635238]
[1753695066885,2.7093524,192.61,192.59,6.50635238]
[1753695067377,2.7093524,192.61,192.6,0.69]
[1753695067574,38.9093524,192.61,192.6,0.69]
[1753695067810,38.9093524,192.61,192.59,5.81635238]
[1753695068102,38.9093524,192.61,192.58,0.69]
[1753695068103,38.9093524,192.61,192.6,6.50635238]
[1753695069287,38.9093524,192.61,192.6,11.69846037]
[1753695069488,36.2,192.61,192.6,11.69846037]
[1753695069800,2.7088067,192.64,192.61,0.28432314]
[1753695070001,2.7088067,192.64,192.62,0.69]
[1753695070002,36.2,192.63,192.62,0.69]
[1753695070308,0.67,192.7,192.63,26.28432314]
[1753695070479,36.2,192.69,192.64,0.69]
[1753695070680,2.7083018,192.66,192.64,0.97432314]
[1753695070886,36.2,192.65,192.64,0.28432314]
[1753695071085,36.2,192.66,192.64,0.28432314]
[1753695071304,36.2,192.66,192.65,5.47508358]
[1753695071617,36.2,192.66,192.65,6.16508358]
[1753695072109,2.70797154,192.7,192.66,0.28432314]
[1753695072315,36.2,192.69,192.67,0.69]
[1753695072610,36.2,192.69,192.68,0.69]
[1753695073479,36.2,192.69,192.68,5.81635238]
[1753695076407,36.2,192.69,192.68,6.50635238]
[1753695076911,36.2,192.69,192.68,11.69630463]
[1753695079009,2.70797154,192.7,192.68,11.69630463]
[1753695079217,36.2,192.69,192.68,5.47427539]
[1753695079723,36.2,192.69,192.68,6.14427539]
[1753695080302,36.2,192.69,192.68,11.96062777]
[1753695082115,38.09,192.77,192.71,26.0]
[1753695082315,37.4,192.77,192.72,0.28432314]
[1753695082533,3.39714798,192.76,192.74,5.81635238]
[1753695082703,0.69,192.75,192.74,5.81635238]
[1753695083543,0.69,192.75,192.72,0.28432314]
[1753695083705,0.69,192.75,192.73,5.81635238]
[1753695084052,5.87810592,192.75,192.73,5.81635238]
[1753695084409,0.69,192.74,192.73,5.81635238]
[1753695084802,0.69,192.74,192.66,88.3]
[1753695085038,41.36886182,192.73,192.7,5.81635238]
[1753695085351,0.69,192.72,192.69,5.81635238]
[1753695086016,0.69,192.71,192.69,5.81635238]
[1753695086215,36.18,192.7,192.69,5.81635238]
[1753695086635,36.18,192.7,192.68,5.81635238]
[1753695086834,36.18,192.7,192.69,5.81635238]
[1753695087918,36.18,192.7,192.68,5.81635238]
[1753695089037,36.18,192.7,192.68,6.48635238]
[1753695091041,36.18,192.7,192.68,0.67]
[1753695091407,15.67689687,192.76,192.69,6.48635238]
[1753695091408,2.70714798,192.76,192.69,6.48635238]
[1753695091614,2.70714798,192.76,192.75,5.81635238]
[1753695091927,38.88714798,192.76,192.75,5.81635238]
[1753695092126,38.88714798,192.76,192.74,5.81635238]
[1753695092445,38.88714798,192.76,192.73,0.67]
[1753695092646,39.57714798,192.76,192.74,5.81635238]
[1753695093150,38.88714798,192.76,192.74,5.81635238]
[1753695093446,39.57714798,192.76,192.74,5.81635238]
[1753695094122,38.88714798,192.76,192.75,5.81635238]
[1753695094731,2.70714798,192.76,192.75,5.81635238]
[1753695095047,38.88714798,192.76,192.75,5.81635238]
[1753695095750,2.70714798,192.76,192.75,5.81635238]
[1753695095917,38.88714798,192.76,192.75,5.81635238]
[1753695096739,2.70714798,192.76,192.75,5.81635238]
[1753695097044,38.88714798,192.76,192.75,5.81635238]
[1753695097248,2.70714798,192.76,192.75,5.81635238]
[1753695097920,38.88714798,192.76,192.75,5.81635238]
[1753695098147,2.70714798,192.76,192.75,5.81635238]
[1753695098381,38.88714798,192.76,192.75,5.81635238]
[1753695102333,2.70714798,192.76,192.75,5.81635238]
[1753695102575,38.88714798,192.76,192.75,5.81635238]
[1753695103458,2.70714798,192.76,192.75,5.81635238]
[1753695103764,38.88714798,192.76,192.75,5.81635238]
[1753695104452,2.70714798,192.76,192.75,6.77067552]
[1753695104647,38.88714798,192.76,192.75,6.77067552]
[1753695106058,38.88714798,192.76,192.75,11.95874296]
[1753695107161,2.70714798,192.76,192.75,11.95874296]
[1753695107371,38.88714798,192.76,192.75,11.95874296]
[1753695107871,38.88714798,192.76,192.75,6.10067552]
[1753695108035,44.76494627,192.76,192.73,94.11635238]
[1753695108232,0.66,192.75,192.73,94.11635238]
[1753695108468,36.18,192.74,192.73,94.11635238]
[1753695108677,36.84,192.74,192.71,5.81635238]
[1753695108842,0.66,192.73,192.7,5.81635238]
[1753695109161,0.66,192.73,192.71,5.81635238]
[1753695109162,2.70761614,192.73,192.71,5.81635238]
[1753695109370,0.66,192.76,192.72,6.78067552]
[1753695109670,19.59885662,192.81,192.71,0.28432314]
[1753695109671,39.54748595,192.75,192.71,31.81635238]
[1753695109973,0.66,192.74,192.72,5.81635238]
[1753695110182,0.66,192.74,192.71,26.0]
[1753695110183,5.84850176,192.74,192.71,31.81635238]
[1753695110480,0.66,192.73,192.69,5.81635238]
[1753695110680,36.18,192.72,192.69,5.81635238]
[1753695111044,0.66,192.71,192.69,5.81635238]
[1753695111262,0.66,192.7,192.69,5.81635238]
[1753695111944,36.84,192.72,192.69,5.81635238]
[1753695112139,0.66,192.71,192.69,5.81635238]
[1753695112787,0.66,192.7,192.67,31.95851395]
[1753695113072,36.18,192.69,192.67,5.95851395]
[1753695113235,36.84,192.69,192.67,5.95851395]
[1753695113665,0.66,192.68,192.67,31.81635238]
[1753695114248,36.18,192.69,192.67,31.81635238]
[1753695115780,36.84,192.69,192.67,31.81635238]
[1753695116566,36.18,192.69,192.67,31.81635238]
[1753695117259,36.18,192.69,192.67,32.49635238]
[1753695117658,36.18,192.69,192.67,31.81635238]
[1753695118043,36.84,192.69,192.67,31.81635238]
[1753695118443,6.47635238,192.68,192.63,5.81635238]
[1753695118643,36.84,192.67,192.63,5.81635238]
[1753695118949,36.84,192.67,192.63,31.81635238]
[1753695118950,0.66,192.66,192.63,31.81635238]
[1753695119269,36.84,192.65,192.63,26.0]
[1753695119451,36.18,192.65,192.62,5.81635238]
[1753695119771,36.84,192.65,192.62,5.81635238]
[1753695120850,36.84,192.65,192.62,6.49635238]
[1753695121749,36.84,192.65,192.62,5.81635238]
[1753695121947,0.66,192.64,192.62,5.81635238]
[1753695122171,0.66,192.63,192.61,5.81635238]
[1753695122350,36.84,192.62,192.6,5.81635238]
[1753695122546,36.84,192.62,192.58,0.68]
[1753695122547,36.84,192.61,192.58,5.81635238]
[1753695122772,36.84,192.61,192.57,5.81635238]
[1753695123072,0.66,192.6,192.57,5.81635238]
[1753695123657,36.18,192.61,192.57,5.81635238]
[1753695123865,0.66,192.59,192.57,5.81635238]
[1753695124061,36.18,192.58,192.57,6.10067552]
[1753695124267,36.18,192.58,192.57,5.81635238]
[1753695129480,36.18,192.58,192.57,11.68926924]
[1753695130780,36.18,192.58,192.57,11.97359238]
[1753695132776,36.18,192.58,192.57,11.29359238]
[1753695132973,36.18,192.58,192.57,6.10067552]
[1753695133172,36.84,192.58,192.57,6.10067552]
[1753695133563,0.66,192.58,192.57,6.10067552]
[1753695133763,0.66,192.58,192.57,11.29359238]
[1753695133764,36.2,192.58,192.57,11.29359238]
[1753695134280,36.2,192.58,192.57,6.10067552]
[1753695134794,36.2,192.58,192.57,5.81635238]
[1753695134969,36.86,192.58,192.57,5.81635238]
[1753695136078,36.2,192.58,192.57,5.81635238]
[1753695138198,2.70943991,192.6,192.58,0.28432314]
[1753695138379,2.70943991,192.6,192.59,6.76067552]
[1753695138578,38.90943991,192.6,192.59,6.10067552]
[1753695139574,38.90943991,192.6,192.59,11.9530531]
[1753695139970,39.57943991,192.6,192.59,26.0]
[1753695140192,38.90943991,192.6,192.59,31.81635238]
[1753695140474,38.90943991,192.6,192.59,32.76067552]
[1753695140679,0.67,192.64,192.6,0.28432314]
[1753695140874,2.70886672,192.64,192.63,5.81635238]
[1753695141107,38.94886672,192.64,192.63,5.81635238]
[1753695141411,39.61886672,192.64,192.61,5.81635238]
[1753695141587,0.67,192.63,192.61,5.81635238]
[1753695141790,0.67,192.62,192.61,5.81635238]
[1753695141983,38.94886672,192.64,192.61,5.81635238]
[1753695142307,0.67,192.63,192.61,5.81635238]
[1753695142485,38.94886672,192.64,192.61,5.81635238]
[1753695142677,3.37886672,192.64,192.62,5.81635238]
[1753695142882,36.22,192.63,192.62,5.19156889]
[1753695143094,2.70886672,192.64,192.63,0.28432314]
[1753695143393,0.67,192.68,192.63,6.76067552]